[Event "Late-Titled-Tuesday-Blitz-September-26-2023"]
[Site "Chess.com"]
[Date "2023.09.26"]
[Round "3"]
[White "lefonghua"]
[Black "Battever"]
[Result "1/2-1/2"]
[WhiteElo "2636"]
[BlackElo "2468"]
[TimeControl "180+1"]
[EndTime "14:30:25 PDT"]
[Termination "Game drawn by stalemate"]

1. d4 {[%clk 0:03:00.9]} 1... Nf6 {[%clk 0:02:52.3]} 2. c4 {[%clk 0:03:01.1]}
2... e6 {[%clk 0:02:52.1]} 3. Nc3 {[%clk 0:03:01.4]} 3... Bb4 {[%clk 0:02:52]}
4. f3 {[%clk 0:03:00.5]} 4... c5 {[%clk 0:02:47.4]} 5. a3 {[%clk 0:03:00.7]}
5... Bxc3+ {[%clk 0:02:46]} 6. bxc3 {[%clk 0:03:01.6]} 6... Qe7 {[%clk
0:02:30.5]} 7. e4 {[%clk 0:03:00]} 7... d6 {[%clk 0:02:29.6]} 8. Ne2 {[%clk
0:02:54.7]} 8... Nc6 {[%clk 0:02:29.6]} 9. Ng3 {[%clk 0:02:51.8]} 9... e5 {[%clk
0:02:26.4]} 10. d5 {[%clk 0:02:48.8]} 10... Na5 {[%clk 0:02:24.4]} 11. Qa4+
{[%clk 0:02:39.4]} 11... Bd7 {[%clk 0:02:22.8]} 12. Qxa5 {[%clk 0:02:39.1]}
12... b6 {[%clk 0:02:22.8]} 13. Qa6 {[%clk 0:02:38.5]} 13... O-O {[%clk
0:02:21.7]} 14. Nf5 {[%clk 0:02:23.7]} 14... Bxf5 {[%clk 0:02:19.5]} 15. exf5
{[%clk 0:02:24]} 15... e4 {[%clk 0:02:20.4]} 16. f4 {[%clk 0:02:19.1]} 16... e3
{[%clk 0:02:18.5]} 17. Be2 {[%clk 0:02:14.9]} 17... Qe4 {[%clk 0:02:09.5]} 18.
O-O {[%clk 0:02:09.2]} 18... Qc2 {[%clk 0:02:09.6]} 19. Bxe3 {[%clk 0:01:57.3]}
19... Qxe2 {[%clk 0:01:58.5]} 20. Rfe1 {[%clk 0:01:51.8]} 20... Qc2 {[%clk
0:01:53.8]} 21. Rac1 {[%clk 0:01:44.7]} 21... Qxf5 {[%clk 0:01:53.6]} 22. Qa4
{[%clk 0:01:43.9]} 22... Qe4 {[%clk 0:01:45]} 23. Bd4 {[%clk 0:01:36.7]} 23...
Qf5 {[%clk 0:01:31.2]} 24. Bxf6 {[%clk 0:01:36.2]} 24... Qxf6 {[%clk 0:01:32.1]}
25. g3 {[%clk 0:01:34.7]} 25... h5 {[%clk 0:01:25.3]} 26. Re3 {[%clk 0:01:33.7]}
26... h4 {[%clk 0:01:23.6]} 27. Rce1 {[%clk 0:01:33.2]} 27... h3 {[%clk
0:01:23.7]} 28. Qd7 {[%clk 0:01:30.8]} 28... Qh6 {[%clk 0:01:18]} 29. Re7 {[%clk
0:01:25.3]} 29... Qh5 {[%clk 0:01:15]} 30. Kf2 {[%clk 0:01:14.8]} 30... Rad8
{[%clk 0:01:07.6]} 31. Qa4 {[%clk 0:00:59.9]} 31... Qf5 {[%clk 0:00:57.6]} 32.
Qd1 {[%clk 0:00:56.5]} 32... a6 {[%clk 0:00:23.1]} 33. Qf3 {[%clk 0:00:44.1]}
33... b5 {[%clk 0:00:21.1]} 34. cxb5 {[%clk 0:00:42.5]} 34... axb5 {[%clk
0:00:22]} 35. g4 {[%clk 0:00:42.6]} 35... Qc2+ {[%clk 0:00:21.9]} 36. R1e2
{[%clk 0:00:38.2]} 36... Qb3 {[%clk 0:00:21.7]} 37. Qxh3 {[%clk 0:00:36.9]}
37... Qxd5 {[%clk 0:00:22.1]} 38. Qf3 {[%clk 0:00:33.4]} 38... Qb3 {[%clk
0:00:19.5]} 39. f5 {[%clk 0:00:28.4]} 39... b4 {[%clk 0:00:15.4]} 40. axb4
{[%clk 0:00:26.5]} 40... cxb4 {[%clk 0:00:15.9]} 41. cxb4 {[%clk 0:00:25]} 41...
Qxb4 {[%clk 0:00:15.9]} 42. f6 {[%clk 0:00:25.5]} 42... Qd4+ {[%clk 0:00:16.1]}
43. Kg2 {[%clk 0:00:24.9]} 43... Qxf6 {[%clk 0:00:16]} 44. Qxf6 {[%clk
0:00:20.9]} 44... gxf6 {[%clk 0:00:16.9]} 45. Rd2 {[%clk 0:00:18.9]} 45... Kg7
{[%clk 0:00:16.4]} 46. Re4 {[%clk 0:00:16.9]} 46... Rd7 {[%clk 0:00:15]} 47.
Red4 {[%clk 0:00:16.1]} 47... Rfd8 {[%clk 0:00:15.5]} 48. Rd5 {[%clk 0:00:16.7]}
48... Kg6 {[%clk 0:00:15.1]} 49. h4 {[%clk 0:00:16.3]} 49... Kg7 {[%clk
0:00:15.6]} 50. Kg3 {[%clk 0:00:16.7]} 50... Ra8 {[%clk 0:00:12.6]} 51. Rxd6
{[%clk 0:00:14]} 51... Ra3+ {[%clk 0:00:13.1]} 52. Kf4 {[%clk 0:00:13.1]} 52...
Re7 {[%clk 0:00:11.5]} 53. R6d3 {[%clk 0:00:10.1]} 53... Ra4+ {[%clk 0:00:11]}
54. Rd4 {[%clk 0:00:09]} 54... Ra3 {[%clk 0:00:11]} 55. R2d3 {[%clk 0:00:09.4]}
55... Ra1 {[%clk 0:00:11.4]} 56. Rd1 {[%clk 0:00:09.6]} 56... Ra2 {[%clk
0:00:11.8]} 57. R1d2 {[%clk 0:00:09.9]} 57... Ra3 {[%clk 0:00:12.3]} 58. R2d3
{[%clk 0:00:10.3]} 58... Ra1 {[%clk 0:00:12.9]} 59. Rd1 {[%clk 0:00:08.6]} 59...
Ra2 {[%clk 0:00:13.2]} 60. R1d2 {[%clk 0:00:09.2]} 60... Ra5 {[%clk 0:00:13.4]}
61. h5 {[%clk 0:00:09.1]} 61... Rg5 {[%clk 0:00:12.1]} 62. Kf3 {[%clk
0:00:08.3]} 62... Rb7 {[%clk 0:00:10.4]} 63. Rf4 {[%clk 0:00:07]} 63... Rb3+
{[%clk 0:00:10.5]} 64. Kg2 {[%clk 0:00:07.4]} 64... f5 {[%clk 0:00:10.5]} 65.
Rxf5 {[%clk 0:00:07.5]} 65... Rxg4+ {[%clk 0:00:10.6]} 66. Kf2 {[%clk
0:00:07.5]} 66... Rh3 {[%clk 0:00:10.3]} 67. Rdd5 {[%clk 0:00:06.2]} 67... Rgh4
{[%clk 0:00:06.9]} 68. Rg5+ {[%clk 0:00:05.7]} 68... Kh6 {[%clk 0:00:07.2]} 69.
Rg3 {[%clk 0:00:06]} 69... Rh2+ {[%clk 0:00:05.7]} 70. Kf3 {[%clk 0:00:06.1]}
70... Rxh5 {[%clk 0:00:06.2]} 71. Rxh5+ {[%clk 0:00:06.3]} 71... Rxh5 {[%clk
0:00:07.1]} 72. Rg8 {[%clk 0:00:06.3]} 72... Rg5 {[%clk 0:00:06.7]} 73. Rh8+
{[%clk 0:00:06]} 73... Kg7 {[%clk 0:00:06.2]} 74. Ra8 {[%clk 0:00:06.9]} 74...
Rb5 {[%clk 0:00:06.3]} 75. Ra3 {[%clk 0:00:07]} 75... Rb4 {[%clk 0:00:06.7]} 76.
Kf2 {[%clk 0:00:07.4]} 76... Kg6 {[%clk 0:00:07.3]} 77. Kf1 {[%clk 0:00:07.9]}
77... Kf5 {[%clk 0:00:07.5]} 78. Rc3 {[%clk 0:00:08.4]} 78... Ke5 {[%clk
0:00:07.2]} 79. Ra3 {[%clk 0:00:08.6]} 79... f5 {[%clk 0:00:07.7]} 80. Kf2
{[%clk 0:00:08.7]} 80... Kf4 {[%clk 0:00:08.1]} 81. Rc3 {[%clk 0:00:08.1]} 81...
Rb2+ {[%clk 0:00:08.1]} 82. Kf1 {[%clk 0:00:08.7]} 82... Rh2 {[%clk 0:00:08.5]}
83. Rd3 {[%clk 0:00:08.9]} 83... Rh4 {[%clk 0:00:07.2]} 84. Rd4+ {[%clk
0:00:06.7]} 84... Kg3 {[%clk 0:00:07.1]} 85. Rd3+ {[%clk 0:00:06.3]} 85... Kg4
{[%clk 0:00:07.4]} 86. Ra3 {[%clk 0:00:05.9]} 86... f4 {[%clk 0:00:07.6]} 87.
Kf2 {[%clk 0:00:06.4]} 87... Rh2+ {[%clk 0:00:08]} 88. Kf1 {[%clk 0:00:07]}
88... Rb2 {[%clk 0:00:08.3]} 89. Rc3 {[%clk 0:00:07.3]} 89... Rd2 {[%clk
0:00:08.2]} 90. Rb3 {[%clk 0:00:07.7]} 90... Rh2 {[%clk 0:00:08.8]} 91. Ra3
{[%clk 0:00:08.1]} 91... Rh6 {[%clk 0:00:08.5]} 92. Rb3 {[%clk 0:00:08.5]} 92...
Re6 {[%clk 0:00:08.1]} 93. Ra3 {[%clk 0:00:09]} 93... Rb6 {[%clk 0:00:06.5]} 94.
Rc3 {[%clk 0:00:09.3]} 94... Rb2 {[%clk 0:00:07]} 95. Rd3 {[%clk 0:00:09.7]}
95... Kf5 {[%clk 0:00:07.5]} 96. Rc3 {[%clk 0:00:09.9]} 96... Ke4 {[%clk
0:00:07.5]} 97. Ra3 {[%clk 0:00:10.3]} 97... Rc2 {[%clk 0:00:07.3]} 98. Rb3
{[%clk 0:00:10.7]} 98... Rd2 {[%clk 0:00:07.6]} 99. Ra3 {[%clk 0:00:11.3]} 99...
Rd1+ {[%clk 0:00:07.7]} 100. Kf2 {[%clk 0:00:11.5]} 100... Rh1 {[%clk 0:00:08]}
101. Ra4+ {[%clk 0:00:11]} 101... Kf5 {[%clk 0:00:08.2]} 102. Ra3 {[%clk
0:00:11.9]} 102... Rh2+ {[%clk 0:00:07.7]} 103. Kf1 {[%clk 0:00:11.9]} 103...
Rb2 {[%clk 0:00:08.2]} 104. Rc3 {[%clk 0:00:11.8]} 104... Kg4 {[%clk 0:00:08.5]}
105. Rd3 {[%clk 0:00:12.2]} 105... Ra2 {[%clk 0:00:07.6]} 106. Rc3 {[%clk
0:00:12.6]} 106... Kf5 {[%clk 0:00:07.7]} 107. Rb3 {[%clk 0:00:12.9]} 107... Ke4
{[%clk 0:00:07.5]} 108. Rc3 {[%clk 0:00:13.5]} 108... Rb2 {[%clk 0:00:07.8]}
109. Ra3 {[%clk 0:00:13.7]} 109... Rh2 {[%clk 0:00:07.9]} 110. Rb3 {[%clk
0:00:13.9]} 110... Rd2 {[%clk 0:00:07.1]} 111. Ra3 {[%clk 0:00:14.4]} 111... Rd3
{[%clk 0:00:07.5]} 112. Rxd3 {[%clk 0:00:14.1]} 112... Kxd3 {[%clk 0:00:08.1]}
113. Kf2 {[%clk 0:00:14.8]} 113... Ke4 {[%clk 0:00:08.7]} 114. Ke2 {[%clk
0:00:15.5]} 114... Kf5 {[%clk 0:00:08.9]} 115. Kf3 {[%clk 0:00:16.1]} 115... Kg5
{[%clk 0:00:08.9]} 116. Kf2 {[%clk 0:00:16.5]} 116... Kg4 {[%clk 0:00:09.8]}
117. Kg2 {[%clk 0:00:17.1]} 117... f3+ {[%clk 0:00:10.7]} 118. Kf2 {[%clk
0:00:17.7]} 118... Kf4 {[%clk 0:00:11.6]} 119. Kf1 {[%clk 0:00:18.3]} 119... Ke4
{[%clk 0:00:11.9]} 120. Kf2 {[%clk 0:00:18.8]} 120... Kf4 {[%clk 0:00:12.6]}
121. Kf1 {[%clk 0:00:19.4]} 121... Kg3 {[%clk 0:00:13.5]} 122. Kg1 {[%clk
0:00:19.9]} 122... f2+ {[%clk 0:00:14.4]} 123. Kf1 {[%clk 0:00:20.4]} 123... Kf3
{[%clk 0:00:15.3]} 1/2-1/2

[Event "Late-Titled-Tuesday-Blitz-September-26-2023"]
[Site "Chess.com"]
[Date "2023.09.26"]
[Round "3"]
[White "Sokoloco"]
[Black "HajiyevKanan"]
[Result "1-0"]
[WhiteElo "2694"]
[BlackElo "2507"]
[TimeControl "180+1"]
[EndTime "14:30:41 PDT"]
[Termination "Sokoloco won by checkmate"]

1. b3 {[%clk 0:02:57.5]} 1... b6 {[%clk 0:02:59.6]} 2. Bb2 {[%clk 0:02:58.4]}
2... Bb7 {[%clk 0:03:00.4]} 3. e3 {[%clk 0:02:57.3]} 3... Nf6 {[%clk 0:03:00.7]}
4. Nf3 {[%clk 0:02:54.9]} 4... g6 {[%clk 0:02:59.7]} 5. Bxf6 {[%clk 0:02:47.5]}
5... exf6 {[%clk 0:03:00.6]} 6. d4 {[%clk 0:02:47.2]} 6... Bb4+ {[%clk
0:02:55.6]} 7. c3 {[%clk 0:02:46.9]} 7... Be7 {[%clk 0:02:54.7]} 8. Be2 {[%clk
0:02:47]} 8... O-O {[%clk 0:02:55]} 9. O-O {[%clk 0:02:47.3]} 9... f5 {[%clk
0:02:55.8]} 10. Ne1 {[%clk 0:02:47.6]} 10... Nc6 {[%clk 0:02:43.2]} 11. Bf3
{[%clk 0:02:45.8]} 11... d5 {[%clk 0:02:41.1]} 12. Nd3 {[%clk 0:02:45.5]} 12...
Bf6 {[%clk 0:02:40.7]} 13. Nd2 {[%clk 0:02:44.6]} 13... Re8 {[%clk 0:02:38.3]}
14. g3 {[%clk 0:02:43.3]} 14... h5 {[%clk 0:02:37.1]} 15. h4 {[%clk 0:02:41.3]}
15... Kg7 {[%clk 0:02:37.2]} 16. Re1 {[%clk 0:02:40.7]} 16... a5 {[%clk
0:02:35.4]} 17. a4 {[%clk 0:02:34]} 17... Rb8 {[%clk 0:02:35.7]} 18. Qe2 {[%clk
0:02:30.7]} 18... Na7 {[%clk 0:02:31.8]} 19. Qf1 {[%clk 0:02:29.5]} 19... Nc8
{[%clk 0:02:31.5]} 20. Qg2 {[%clk 0:02:29]} 20... c6 {[%clk 0:02:32.1]} 21. Rab1
{[%clk 0:02:16.1]} 21... Nd6 {[%clk 0:02:30.5]} 22. c4 {[%clk 0:02:04]} 22...
Ne4 {[%clk 0:02:25.8]} 23. Bxe4 {[%clk 0:01:45.6]} 23... dxe4 {[%clk 0:02:23.6]}
24. Nf4 {[%clk 0:01:44.5]} 24... c5 {[%clk 0:02:18.1]} 25. d5 {[%clk 0:01:42.8]}
25... Be5 {[%clk 0:02:12.9]} 26. Rbc1 {[%clk 0:01:39.4]} 26... Qf6 {[%clk
0:02:11.4]} 27. Nb1 {[%clk 0:01:33.2]} 27... Rbd8 {[%clk 0:02:10.4]} 28. Rc2
{[%clk 0:01:32.7]} 28... Re7 {[%clk 0:02:01.3]} 29. Nh3 {[%clk 0:01:30.9]} 29...
Qd6 {[%clk 0:01:59.3]} 30. Nc3 {[%clk 0:01:28.7]} 30... Ba6 {[%clk 0:01:58.5]}
31. Ne2 {[%clk 0:01:28.5]} 31... Qf6 {[%clk 0:01:53]} 32. Nef4 {[%clk
0:01:26.3]} 32... Bc3 {[%clk 0:01:51]} 33. Rec1 {[%clk 0:01:25.8]} 33... Bb2
{[%clk 0:01:50.4]} 34. Rb1 {[%clk 0:01:24.7]} 34... Be5 {[%clk 0:01:50.9]} 35.
Ng5 {[%clk 0:01:24.9]} 35... Qd6 {[%clk 0:01:35.9]} 36. Rd1 {[%clk 0:01:23.7]}
36... Bf6 {[%clk 0:01:34.1]} 37. Rcd2 {[%clk 0:01:20.1]} 37... Bc3 {[%clk
0:01:31]} 38. Rc2 {[%clk 0:01:19.7]} 38... Be5 {[%clk 0:01:31.8]} 39. Qf1 {[%clk
0:01:19.8]} 39... Bxf4 {[%clk 0:01:26.2]} 40. exf4 {[%clk 0:01:12.4]} 40... f6
{[%clk 0:01:27]} 41. Nh3 {[%clk 0:01:09.5]} 41... Kh6 {[%clk 0:01:24.9]} 42. Qe1
{[%clk 0:01:03.8]} 42... Red7 {[%clk 0:01:21.4]} 43. Qe3 {[%clk 0:01:03.6]}
43... Kh7 {[%clk 0:01:20]} 44. Kg2 {[%clk 0:01:04]} 44... Re8 {[%clk 0:01:18.3]}
45. Ng1 {[%clk 0:01:04.5]} 45... Red8 {[%clk 0:01:17.4]} 46. Ne2 {[%clk
0:01:05.1]} 46... Re8 {[%clk 0:01:18]} 47. Nc3 {[%clk 0:01:05.8]} 47... Qf8
{[%clk 0:01:17.3]} 48. Re1 {[%clk 0:01:06]} 48... Rde7 {[%clk 0:01:16.7]} 49.
Rce2 {[%clk 0:01:06.3]} 49... Rd7 {[%clk 0:01:16.4]} 50. f3 {[%clk 0:01:02.2]}
50... exf3+ {[%clk 0:01:16]} 51. Qxf3 {[%clk 0:01:03.1]} 51... Rde7 {[%clk
0:01:14.2]} 52. Re3 {[%clk 0:00:51.1]} 52... Kg7 {[%clk 0:01:03.6]} 53. Kf1
{[%clk 0:00:44.9]} 53... Kf7 {[%clk 0:00:53.7]} 54. Re6 {[%clk 0:00:35.1]} 54...
Rxe6 {[%clk 0:00:45.3]} 55. Rxe6 {[%clk 0:00:30.9]} 55... Rxe6 {[%clk
0:00:42.4]} 56. dxe6+ {[%clk 0:00:31.8]} 56... Kxe6 {[%clk 0:00:36.9]} 57. Qc6+
{[%clk 0:00:21.2]} 57... Qd6 {[%clk 0:00:34.9]} 58. Qe8+ {[%clk 0:00:21.9]}
58... Qe7 {[%clk 0:00:35.2]} 59. Qxg6 {[%clk 0:00:19]} 59... Qd7 {[%clk
0:00:27.1]} 60. Qxh5 {[%clk 0:00:14.8]} 60... Qd3+ {[%clk 0:00:26]} 61. Qe2+
{[%clk 0:00:15.4]} 61... Qxe2+ {[%clk 0:00:23.5]} 62. Kxe2 {[%clk 0:00:16.3]}
62... Bb7 {[%clk 0:00:21.6]} 63. Kd3 {[%clk 0:00:14.1]} 63... Bf3 {[%clk
0:00:21.2]} 64. Nd5 {[%clk 0:00:10.9]} 64... Be4+ {[%clk 0:00:20.3]} 65. Kc3
{[%clk 0:00:11.2]} 65... b5 {[%clk 0:00:18.2]} 66. axb5 {[%clk 0:00:11]} 66...
Bf3 {[%clk 0:00:15.6]} 67. Nb6 {[%clk 0:00:07.5]} 67... Kd6 {[%clk 0:00:15.5]}
68. Na4 {[%clk 0:00:08.2]} 68... Kc7 {[%clk 0:00:16]} 69. Nb2 {[%clk 0:00:08.9]}
69... Kd6 {[%clk 0:00:16.5]} 70. Na4 {[%clk 0:00:09.5]} 70... Be4 {[%clk
0:00:16.8]} 71. Kd2 {[%clk 0:00:09.3]} 71... Bf3 {[%clk 0:00:17]} 72. Nc3 {[%clk
0:00:08.1]} 72... Bg4 {[%clk 0:00:17.6]} 73. Ke3 {[%clk 0:00:07.9]} 73... Kc7
{[%clk 0:00:16.8]} 74. Nd5+ {[%clk 0:00:08.2]} 74... Kb7 {[%clk 0:00:16.5]} 75.
Kd3 {[%clk 0:00:08]} 75... Bd1 {[%clk 0:00:17.4]} 76. Kc3 {[%clk 0:00:08.5]}
76... Bf3 {[%clk 0:00:17.1]} 77. Nxf6 {[%clk 0:00:08.8]} 77... Be2 {[%clk
0:00:17.4]} 78. h5 {[%clk 0:00:09.2]} 78... Bxh5 {[%clk 0:00:15.1]} 79. Nxh5
{[%clk 0:00:09.4]} 79... Kb6 {[%clk 0:00:16]} 80. Ng7 {[%clk 0:00:10]} 80... Kc7
{[%clk 0:00:16.5]} 81. Nxf5 {[%clk 0:00:10.5]} 81... Kd7 {[%clk 0:00:17.4]} 82.
Ne3 {[%clk 0:00:11.1]} 82... Kc7 {[%clk 0:00:18]} 83. Nf1 {[%clk 0:00:11.6]}
83... Kb6 {[%clk 0:00:18.9]} 84. Nd2 {[%clk 0:00:12.5]} 84... Kc7 {[%clk
0:00:19.6]} 85. Ne4 {[%clk 0:00:13.2]} 85... Kb6 {[%clk 0:00:19.6]} 86. g4
{[%clk 0:00:13.7]} 86... a4 {[%clk 0:00:20]} 87. bxa4 {[%clk 0:00:14.2]} 87...
Ka5 {[%clk 0:00:20.5]} 88. Nxc5 {[%clk 0:00:14.8]} 88... Kb6 {[%clk 0:00:20.5]}
89. Kb4 {[%clk 0:00:15.4]} 89... Ka7 {[%clk 0:00:20.8]} 90. Ne4 {[%clk
0:00:16.1]} 90... Kb6 {[%clk 0:00:21.7]} 91. c5+ {[%clk 0:00:16.8]} 91... Ka7
{[%clk 0:00:22.6]} 92. a5 {[%clk 0:00:17.6]} 92... Kb7 {[%clk 0:00:23.5]} 93. f5
{[%clk 0:00:18.4]} 93... Ka7 {[%clk 0:00:24.4]} 94. g5 {[%clk 0:00:19.3]} 94...
Kb7 {[%clk 0:00:25.3]} 95. f6 {[%clk 0:00:20.2]} 95... Kc7 {[%clk 0:00:26.2]}
96. g6 {[%clk 0:00:21.1]} 96... Kd7 {[%clk 0:00:27.1]} 97. a6 {[%clk 0:00:21.6]}
97... Kc7 {[%clk 0:00:27.4]} 98. g7 {[%clk 0:00:21]} 98... Kd7 {[%clk
0:00:27.3]} 99. g8=N {[%clk 0:00:20.9]} 99... Kc7 {[%clk 0:00:27.9]} 100. f7
{[%clk 0:00:20.8]} 100... Kb8 {[%clk 0:00:27.9]} 101. f8=N {[%clk 0:00:20.8]}
101... Ka7 {[%clk 0:00:28.2]} 102. Ne6 {[%clk 0:00:20.9]} 102... Kb8 {[%clk
0:00:28.5]} 103. N6g5 {[%clk 0:00:21.8]} 103... Kc7 {[%clk 0:00:29]} 104. Ngf6
{[%clk 0:00:22.6]} 104... Kb8 {[%clk 0:00:29.9]} 105. Ng4 {[%clk 0:00:23]}
105... Ka7 {[%clk 0:00:30.8]} 106. Ngf2 {[%clk 0:00:23.9]} 106... Kb8 {[%clk
0:00:31.7]} 107. Ng3 {[%clk 0:00:24.7]} 107... Ka7 {[%clk 0:00:32.6]} 108. Ngh3
{[%clk 0:00:25.2]} 108... Kb8 {[%clk 0:00:33.5]} 109. Ng1 {[%clk 0:00:26]}
109... Ka7 {[%clk 0:00:34.4]} 110. Ka5 {[%clk 0:00:26.5]} 110... Kb8 {[%clk
0:00:35.3]} 111. Kb6 {[%clk 0:00:26.9]} 111... Kc8 {[%clk 0:00:35.6]} 112. a7
{[%clk 0:00:27.1]} 112... Kd7 {[%clk 0:00:36.3]} 113. a8=N {[%clk 0:00:27.2]}
113... Ke6 {[%clk 0:00:36.4]} 114. c6 {[%clk 0:00:26.5]} 114... Kd6 {[%clk
0:00:37.3]} 115. c7 {[%clk 0:00:26.6]} 115... Ke5 {[%clk 0:00:38.1]} 116. c8=N
{[%clk 0:00:26.3]} 116... Kf4 {[%clk 0:00:39]} 117. Nf1 {[%clk 0:00:24.4]}
117... Ke5 {[%clk 0:00:39.9]} 118. Na7 {[%clk 0:00:24.2]} 118... Kd4 {[%clk
0:00:40.8]} 119. Nc7 {[%clk 0:00:24.5]} 119... Kc3 {[%clk 0:00:41.7]} 120. Kb7
{[%clk 0:00:24.5]} 120... Kd4 {[%clk 0:00:42.6]} 121. b6 {[%clk 0:00:25.1]}
121... Ke5 {[%clk 0:00:43.4]} 122. Na6 {[%clk 0:00:25]} 122... Kd6 {[%clk
0:00:44.3]} 123. Kc8 {[%clk 0:00:24.8]} 123... Ke5 {[%clk 0:00:45.2]} 124. b7
{[%clk 0:00:25.4]} 124... Kf4 {[%clk 0:00:46.1]} 125. b8=N {[%clk 0:00:25.2]}
125... Ke5 {[%clk 0:00:46.7]} 126. Kc7 {[%clk 0:00:25.3]} 126... Kd4 {[%clk
0:00:47.6]} 127. Kb6 {[%clk 0:00:25.6]} 127... Ke5 {[%clk 0:00:48.5]} 128. Kc5
{[%clk 0:00:25.6]} 128... Ke6 {[%clk 0:00:48.7]} 129. Nbc6 {[%clk 0:00:24.5]}
129... Kf5 {[%clk 0:00:49]} 130. Kd5 {[%clk 0:00:23.4]} 130... Kf4 {[%clk
0:00:49.9]} 131. Kd4 {[%clk 0:00:23.5]} 131... Kf5 {[%clk 0:00:49.2]} 132. Nb5
{[%clk 0:00:23.2]} 132... Kf4 {[%clk 0:00:50.1]} 133. Nc5 {[%clk 0:00:23.3]}
133... Kf5 {[%clk 0:00:51]} 134. Nd6+ {[%clk 0:00:23.2]} 134... Kg5 {[%clk
0:00:51.9]} 135. Ne6+ {[%clk 0:00:21.4]} 135... Kf6 {[%clk 0:00:52.8]} 136. Kd5
{[%clk 0:00:21.4]} 136... Kg6 {[%clk 0:00:51.6]} 137. Nfe4 {[%clk 0:00:21.2]}
137... Kh5 {[%clk 0:00:52]} 138. Ke5 {[%clk 0:00:21.1]} 138... Kg6 {[%clk
0:00:52.9]} 139. Nf6 {[%clk 0:00:19.7]} 139... Kh6 {[%clk 0:00:52.5]} 140. Ne3
{[%clk 0:00:19]} 140... Kg6 {[%clk 0:00:53.4]} 141. Ne2 {[%clk 0:00:15.8]}
141... Kh6 {[%clk 0:00:54.3]} 142. Nef5+ {[%clk 0:00:10.9]} 142... Kg6 {[%clk
0:00:55.2]} 143. N2f4# {[%clk 0:00:11.5]} 1-0

[Event "Late-Titled-Tuesday-Blitz-September-26-2023"]
[Site "Chess.com"]
[Date "2023.09.26"]
[Round "4"]
[White "arminmusovic"]
[Black "Willychess95"]
[Result "0-1"]
[WhiteElo "2506"]
[BlackElo "2703"]
[TimeControl "180+1"]
[EndTime "14:33:54 PDT"]
[Termination "Willychess95 won by resignation"]

1. a3 {[%clk 0:03:00.9]} 1... Nf6 {[%clk 0:02:56.7]} 2. c4 {[%clk 0:03:00.6]}
2... c6 {[%clk 0:02:53.4]} 3. g3 {[%clk 0:02:59.6]} 3... d5 {[%clk 0:02:53.6]}
4. Bg2 {[%clk 0:02:58]} 4... dxc4 {[%clk 0:02:52.1]} 5. Nf3 {[%clk 0:02:58.3]}
5... g6 {[%clk 0:02:50.8]} 6. Qc2 {[%clk 0:02:50.5]} 6... Bg7 {[%clk 0:02:38.3]}
7. O-O {[%clk 0:02:46]} 7... O-O {[%clk 0:02:27.3]} 8. Qxc4 {[%clk 0:02:46.1]}
8... Qb6 {[%clk 0:02:24.2]} 9. Nc3 {[%clk 0:02:42.3]} 9... Be6 {[%clk
0:02:22.4]} 10. Qh4 {[%clk 0:02:42.2]} 10... h6 {[%clk 0:02:17.6]} 11. d3 {[%clk
0:02:33.1]} 11... g5 {[%clk 0:02:15.2]} 12. Qd4 {[%clk 0:02:21]} 12... Qb3
{[%clk 0:02:07.6]} 13. Qa4 {[%clk 0:02:19]} 13... Qxa4 {[%clk 0:02:02]} 14. Nxa4
{[%clk 0:02:19.9]} 14... Nbd7 {[%clk 0:02:02.2]} 15. Nd4 {[%clk 0:02:11.8]}
15... Bg4 {[%clk 0:02:01.9]} 16. h3 {[%clk 0:02:07]} 16... Bh5 {[%clk
0:02:01.6]} 17. Nf5 {[%clk 0:02:06.5]} 17... Bxe2 {[%clk 0:01:58.2]} 18. Re1
{[%clk 0:02:03.2]} 18... Bxd3 {[%clk 0:01:58.2]} 19. h4 {[%clk 0:01:54]} 19...
Bxf5 {[%clk 0:01:57.1]} 0-1

[Event "Late-Titled-Tuesday-Blitz-September-26-2023"]
[Site "Chess.com"]
[Date "2023.09.26"]
[Round "4"]
[White "Horokoskii"]
[Black "ATM622"]
[Result "0-1"]
[WhiteElo "2105"]
[BlackElo "2433"]
[TimeControl "180+1"]
[EndTime "14:33:55 PDT"]
[Termination "ATM622 won by resignation"]

1. c4 {[%clk 0:02:15.4]} 1... e5 {[%clk 0:02:54.2]} 2. Nc3 {[%clk 0:02:13.7]}
2... f5 {[%clk 0:02:54.4]} 3. Nf3 {[%clk 0:02:07.4]} 3... d6 {[%clk 0:02:48.3]}
4. e4 {[%clk 0:02:06.5]} 4... f4 {[%clk 0:02:43.9]} 5. d4 {[%clk 0:02:06.8]}
5... Nd7 {[%clk 0:02:37.2]} 6. dxe5 {[%clk 0:02:06.2]} 6... dxe5 {[%clk
0:02:36.4]} 7. b3 {[%clk 0:02:02.2]} 7... Ngf6 {[%clk 0:02:35.3]} 8. Bb2 {[%clk
0:02:02]} 8... Bb4 {[%clk 0:02:32.9]} 9. Bd3 {[%clk 0:02:02.4]} 9... Nc5 {[%clk
0:02:26.1]} 10. Nxe5 {[%clk 0:01:53.7]} 10... Qd4 {[%clk 0:02:23.4]} 11. Qd2
{[%clk 0:01:31.7]} 11... Qxe5 {[%clk 0:02:16.2]} 12. a3 {[%clk 0:01:31.6]} 12...
Nxb3 {[%clk 0:02:09.9]} 0-1

[Event "Late-Titled-Tuesday-Blitz-September-26-2023"]
[Site "Chess.com"]
[Date "2023.09.26"]
[Round "4"]
[White "sofaceindisguise"]
[Black "simplerXiao"]
[Result "1-0"]
[WhiteElo "2705"]
[BlackElo "2508"]
[TimeControl "180+1"]
[EndTime "14:33:57 PDT"]
[Termination "sofaceindisguise won by resignation"]

1. d4 {[%clk 0:03:00.9]} 1... Nf6 {[%clk 0:02:49.4]} 2. c4 {[%clk 0:03:01.4]}
2... e6 {[%clk 0:02:45.2]} 3. Nc3 {[%clk 0:03:02]} 3... d5 {[%clk 0:02:45.1]} 4.
cxd5 {[%clk 0:03:01.5]} 4... exd5 {[%clk 0:02:45.3]} 5. Bg5 {[%clk 0:03:01.9]}
5... Bb4 {[%clk 0:02:45.2]} 6. e3 {[%clk 0:03:02.2]} 6... c5 {[%clk 0:02:45.2]}
7. Ne2 {[%clk 0:02:59.1]} 7... Nbd7 {[%clk 0:02:45.3]} 8. a3 {[%clk 0:02:59.6]}
8... Ba5 {[%clk 0:02:42.1]} 9. dxc5 {[%clk 0:02:59.6]} 9... Bxc3+ {[%clk
0:02:41.1]} 10. Nxc3 {[%clk 0:02:59.6]} 10... Nxc5 {[%clk 0:02:39.1]} 11. Bxf6
{[%clk 0:03:00]} 11... Qxf6 {[%clk 0:02:38.3]} 12. Qxd5 {[%clk 0:02:52.6]} 12...
Ne6 {[%clk 0:02:34.8]} 13. Bb5+ {[%clk 0:02:52]} 13... Ke7 {[%clk 0:02:33.1]}
14. O-O {[%clk 0:02:51]} 14... Rd8 {[%clk 0:02:32.6]} 15. Rfd1 {[%clk
0:02:45.3]} 15... a6 {[%clk 0:02:30.3]} 16. Bc4 {[%clk 0:02:39.2]} 16... Kf8
{[%clk 0:02:28.3]} 17. Qe4 {[%clk 0:02:35.4]} 17... Re8 {[%clk 0:02:26.9]} 18.
Qxh7 {[%clk 0:02:33]} 18... g6 {[%clk 0:02:24]} 19. Qh6+ {[%clk 0:02:28.5]}
19... Kg8 {[%clk 0:02:23.3]} 20. Rd2 {[%clk 0:02:26.7]} 20... Ng7 {[%clk
0:02:20.6]} 21. Nd5 {[%clk 0:02:24.9]} 21... Qe5 {[%clk 0:02:08.9]} 22. Qf4
{[%clk 0:02:22.4]} 22... Bf5 {[%clk 0:01:59.4]} 23. Qxe5 {[%clk 0:02:21.5]}
23... Rxe5 {[%clk 0:01:59.1]} 24. Rad1 {[%clk 0:02:21.7]} 24... Rc8 {[%clk
0:01:56.5]} 25. Bb3 {[%clk 0:02:19.1]} 25... Ne6 {[%clk 0:01:49.8]} 26. Ne7+
{[%clk 0:02:19.2]} 1-0